fUSD/lending_fUSD_20240707
["ID","MTS","AMOUNT","RATE_DAILY","PERIOD"]
[331397272,1720344640100,-257.2236,0.00014986,2]
[331397274,1720344640112,-257.2236,0.00014986,2]
[331397276,1720344640123,-151.0,0.00014986,2]
[331397278,1720344640133,-151.0,0.00014986,2]
[331397280,1720344640144,-151.0,0.00014986,2]
[331397282,1720344640154,-151.0,0.00014986,2]
[331397284,1720344640165,-151.0,0.00014986,2]
[331397286,1720344640177,-151.0,0.00014986,2]
[331397289,1720344640189,-151.0,0.00014986,2]
[331397291,1720344640200,-151.0,0.00014986,2]
[331397293,1720344640210,-151.0,0.00014986,2]
[331397294,1720344640220,-151.697082,0.00014986,2]
[331397296,1720344640230,-151.0,0.00014986,2]
[331397299,1720344640241,-151.0,0.00014986,2]
[331397300,1720344640251,-228.222796,0.00014986,2]
[331397302,1720344640262,-151.0,0.00014986,2]
[331397304,1720344640272,-151.0,0.00014986,2]
[331397306,1720344640282,-228.222796,0.00014986,2]
[331397308,1720344640292,-166.574541,0.00014986,2]
[331397310,1720344640303,-151.0,0.00014986,2]
[331397312,1720344640317,-166.574541,0.00014986,2]
[331397314,1720344640330,-660.026191,0.00014986,2]
[331397316,1720344640341,-233.751312,0.00014986,2]
[331397318,1720344640351,-829.747161,0.00014986,2]
[331397320,1720344640362,-233.751312,0.00014986,2]
[331397322,1720344640375,-829.747161,0.00014986,2]
[331397324,1720344640386,-660.026191,0.00014986,2]
[331397326,1720344640396,-216.882701,0.00014986,2]
[331397328,1720344640408,-1240.696468,0.00014986,2]
[331397330,1720344640418,-216.882701,0.00014986,2]
[331397332,1720344640428,-1240.696468,0.00014986,2]
[331397334,1720344640438,-164.806166,0.00014986,2]
[331397336,1720344640448,-151.0,0.00014986,2]
[331397338,1720344640459,-164.806166,0.00014986,2]
[331397340,1720344640470,-151.0,0.00014986,2]
[331397342,1720344640480,-513.4988,0.00014986,2]
[331397345,1720344640490,-513.4988,0.00014986,2]
[331397347,1720344640500,-151.0,0.00014986,2]
[331397349,1720344640511,-855.0,0.00014986,2]
[331397351,1720344640520,-10426.0,0.00014986,2]
[331397352,1720344640530,-16806.0,0.00014986,2]
[331397354,1720344640540,-684.0,0.00014986,2]
[331397356,1720344640551,-19513.0,0.00014986,2]
[331397359,1720344640561,-35738.0,0.00014986,2]
[331397361,1720344640572,-7345.0,0.00014986,2]
[331397363,1720344640583,-71173.0,0.00014986,2]
[331397365,1720344640593,-150.0,0.00014997,2]
[331397367,1720344640603,-150.0,0.00014997,2]
[331397369,1720344640613,-150.0,0.00014997,2]
[331397371,1720344640623,-202.10937226,0.00014997,2]
[331397373,1720344640633,-250.00063561,0.00014997,2]
[331397375,1720344640643,-150.0,0.00014997,2]
[331397377,1720344640653,-150.16694236,0.00014997,2]
[331397379,1720344640663,-150.0,0.00014997,2]
[331397381,1720344640673,-150.0,0.00014997,2]
[331397383,1720344640683,-150.0,0.00014997,2]
[331397385,1720344640693,-500.0,0.00014998,2]
[331397387,1720344640703,-164.01924978,0.00014998,2]
[331397389,1720344640714,-524.9795866,0.00014998,2]
[331397391,1720344640724,-500.0,0.00014998,2]
[331397393,1720344640733,-500.0,0.00014998,2]
[331397395,1720344640744,-465.91056137,0.00014998,2]
[331397397,1720344640754,-402.20763455,0.00014998,2]
[331397399,1720344640764,-550.0,0.00014998,2]
[331397401,1720344640775,-500.0,0.00014998,2]
[331397403,1720344640786,-244.07579236,0.00014998,2]
[331397405,1720344640796,-500.0,0.00014998,2]
[331397407,1720344640806,-500.0,0.00014998,2]
[331397409,1720344640817,-500.0,0.00014998,2]
[331397411,1720344640826,-500.0,0.00014998,2]
[331397413,1720344640835,-392.09529907,0.00014998,2]
[331397415,1720344640846,-255956.58976344,0.00014999,2]
[331397417,1720344640856,-151.0,0.00014999,2]
[331397419,1720344640866,-165.48625,0.00014999,2]
[331397421,1720344640876,-165.48625,0.00014999,2]
[331397423,1720344640887,-151.0,0.00014999,2]
[331397425,1720344640897,-151.0,0.00014999,2]
[331397427,1720344640907,-151.0,0.00014999,2]
[331397429,1720344640917,-151.0,0.00014999,2]
[331397430,1720344640927,-151.0,0.00014999,2]
[331397432,1720344640936,-151.0,0.00014999,2]
[331397435,1720344640947,-161.489631,0.00014999,2]
[331397436,1720344640956,-161.522641,0.00014999,2]
[331397439,1720344640966,-151.0,0.00014999,2]
[331397441,1720344640977,-161.522641,0.00014999,2]
[331397443,1720344640987,-151.0,0.00014999,2]
[331397445,1720344640998,-151.0,0.00014999,2]
[331397447,1720344641011,-161.120689,0.00014999,2]
[331397448,1720344641021,-151.0,0.00014999,2]
[331397450,1720344641031,-151.0,0.00014999,2]
[331397453,1720344641042,-151.0,0.00014999,2]
[331397455,1720344641052,-151.0,0.00014999,2]
[331397457,1720344641064,-154.538094,0.00014999,2]
[331397459,1720344641075,-154.538094,0.00014999,2]
[331397461,1720344641085,-151.0,0.00014999,2]
[331397463,1720344641095,-151.0,0.00014999,2]
[331397464,1720344641104,-212.075804,0.00014999,2]
[331397466,1720344641114,-212.075804,0.00014999,2]
[331397467,1720344641123,-151.0,0.00014999,2]
[331397468,1720344641134,-151.0,0.00014999,2]
[331397469,1720344641143,-151.0,0.00014999,2]
[331397470,1720344641153,-153.257539,0.00014999,2]
[331397471,1720344641163,-151.0,0.00014999,2]
[331397472,1720344641174,-208.391301,0.00014999,2]
[331397473,1720344641184,-208.391301,0.00014999,2]
[331397474,1720344641195,-151.0,0.00014999,2]
[331397475,1720344641204,-151.0,0.00014999,2]
[331397476,1720344641215,-151.0,0.00014999,2]
[331397477,1720344641225,-186.33053,0.00014999,2]
[331397478,1720344641235,-151.0,0.00014999,2]
[331397479,1720344641246,-186.33053,0.00014999,2]
[331397480,1720344641259,-151.0,0.00014999,2]
[331397481,1720344641269,-151.0,0.00014999,2]
[331397482,1720344641278,-328.12357,0.00014999,2]
[331397484,1720344641288,-151.0,0.00014999,2]
[331397486,1720344641298,-175.080709,0.00014999,2]
[331397487,1720344641310,-328.12357,0.00014999,2]
[331397488,1720344641319,-175.080709,0.00014999,2]
[331397489,1720344641329,-151.0,0.00014999,2]
[331397490,1720344641339,-151.0,0.00014999,2]
[331397491,1720344641349,-151.0,0.00014999,2]
[331397492,1720344641359,-257.2236,0.00014999,2]
[331397493,1720344641369,-257.2236,0.00014999,2]
[331397494,1720344641379,-151.0,0.00014999,2]
[331397495,1720344641388,-151.0,0.00014999,2]
[331397496,1720344641398,-151.0,0.00014999,2]
[331397497,1720344641408,-151.0,0.00014999,2]
[331397498,1720344641419,-151.0,0.00014999,2]
[331397499,1720344641429,-151.0,0.00014999,2]
[331397500,1720344641438,-151.0,0.00014999,2]
[331397501,1720344641448,-151.0,0.00014999,2]
[331397502,1720344641458,-151.0,0.00014999,2]
[331397503,1720344641468,-151.0,0.00014999,2]
[331397504,1720344641478,-195.787736,0.00014999,2]
[331397505,1720344641488,-195.787736,0.00014999,2]
[331397506,1720344641498,-151.0,0.00014999,2]
[331397507,1720344641508,-151.0,0.00014999,2]
[331397508,1720344641518,-466.147201,0.00014999,2]
[331397509,1720344641528,-151.0,0.00014999,2]
[331397510,1720344641537,-466.147201,0.00014999,2]
[331397511,1720344641546,-635.005244,0.00014999,2]
[331397512,1720344641556,-151.0,0.00014999,2]
[331397513,1720344641566,-151.0,0.00014999,2]
[331397514,1720344641576,-635.005244,0.00014999,2]
[331397515,1720344641586,-1552.496694,0.00014999,2]
[331397516,1720344641596,-1552.496694,0.00014999,2]
[331397517,1720344641606,-151.554238,0.00014999,2]
[331397518,1720344641616,-151.554238,0.00014999,2]
[331397519,1720344641626,-152.0556,0.00014999,2]
[331397520,1720344641636,-152.0556,0.00014999,2]
[331397521,1720344641646,-198.115292,0.00014999,2]
[331397522,1720344641656,-198.115292,0.00014999,2]
[331397523,1720344641665,-219.048114,0.00014999,2]
[331397524,1720344641676,-219.048114,0.00014999,2]
[331397525,1720344641686,-151.0,0.00014999,2]
[331397526,1720344641695,-393.8623,0.00014999,2]
[331397527,1720344641704,-151.0,0.00014999,2]
[331397528,1720344641714,-393.8623,0.00014999,2]
[331397529,1720344641723,-336.525526,0.00014999,2]
[331397530,1720344641733,-151.0,0.00014999,2]
[331397531,1720344641742,-336.525526,0.00014999,2]
[331397532,1720344641752,-275.318988,0.00014999,2]
[331397533,1720344641761,-151.0,0.00014999,2]
[331397534,1720344641771,-275.318988,0.00014999,2]
[331397535,1720344641780,-151.0,0.00014999,2]
[331397536,1720344641790,-151.0,0.00014999,2]
[331397537,1720344641799,-228.222796,0.00014999,2]
[331397538,1720344641809,-151.0,0.00014999,2]
[331397539,1720344641818,-151.0,0.00014999,2]
[331397540,1720344641828,-228.222796,0.00014999,2]
[331397541,1720344641837,-166.574541,0.00014999,2]
[331397542,1720344641847,-151.0,0.00014999,2]
[331397543,1720344641856,-166.574541,0.00014999,2]
[331397544,1720344641866,-660.026191,0.00014999,2]
[331397545,1720344641876,-233.751312,0.00014999,2]
[331397546,1720344641885,-829.747161,0.00014999,2]
[331397547,1720344641895,-233.751312,0.00014999,2]
[331397548,1720344641904,-829.747161,0.00014999,2]
[331397549,1720344641914,-660.026191,0.00014999,2]
[331397550,1720344641924,-216.882701,0.00014999,2]
[331397551,1720344641933,-1240.696468,0.00014999,2]
[331397552,1720344641943,-216.882701,0.00014999,2]
[331397553,1720344641953,-151.0,0.00014999,2]
[331397554,1720344641963,-1240.696468,0.00014999,2]
[331397555,1720344641972,-164.806166,0.00014999,2]
[331397556,1720344641981,-159.852383,0.00014999,2]
[331397557,1720344641991,-151.0,0.00014999,2]
[331397558,1720344642001,-164.806166,0.00014999,2]
[331397559,1720344642013,-247.963682,0.00014999,2]
[331397560,1720344642023,-513.4988,0.00014999,2]
[331397561,1720344642031,-513.4988,0.00014999,2]
[331397562,1720344642043,-151.0,0.00014999,2]
[331397563,1720344642052,-151.0,0.00014999,2]
[331397564,1720344642062,-783.279098,0.00014999,2]
[331397565,1720344642071,-151.0,0.00014999,2]
[331397566,1720344642083,-749.651638,0.00014999,2]
[331397567,1720344642092,-240.581024,0.00014999,2]
[331397568,1720344642102,-783.279098,0.00014999,2]
[331397569,1720344642440,-602.240372,0.00014999,2]
[331397570,1720344642450,-749.651638,0.00014999,2]
[331397571,1720344642460,-492.226272,0.00014999,2]
[331397572,1720344642470,-7748.632752,0.00014999,2]
[331397573,1720344642479,-151.0,0.00014999,2]
[331397574,1720344642488,-151.0,0.00014999,2]
[331397575,1720344642498,-602.240372,0.00014999,2]
[331397576,1720344642507,-492.226272,0.00014999,2]
[331397577,1720344642517,-240.581024,0.00014999,2]
[331397578,1720344642529,-367.561911,0.00014999,2]
[331397579,1720344642539,-7748.632752,0.00014999,2]
[331397580,1720344642548,-151.0,0.00014999,2]
[331397581,1720344642558,-151.0,0.00014999,2]
[331397582,1720344642568,-367.561911,0.00014999,2]
[331397583,1720344642578,-151.0,0.00014999,2]
[331397584,1720344642587,-151.0,0.00014999,2]
[331397585,1720344642597,-267.821041,0.00014999,2]
[331397586,1720344642607,-267.821041,0.00014999,2]
[331397587,1720344642616,-151.0,0.00014999,2]
[331397588,1720344642625,-151.0,0.00014999,2]
[331397589,1720344642635,-1315.212998,0.00014999,2]
[331397590,1720344642644,-1315.212998,0.00014999,2]
[331397591,1720344642653,-236.838732,0.00014999,2]
[331397592,1720344642663,-151.0,0.00014999,2]
[331397593,1720344642673,-151.0,0.00014999,2]
[331397594,1720344642682,-236.838732,0.00014999,2]
[331397595,1720344642691,-151.0,0.00014999,2]
[331397596,1720344642701,-792.571218,0.00014999,2]
[331397597,1720344642716,-151.0,0.00014999,2]
[331397598,1720344642727,-151.0,0.00014999,2]
[331397599,1720344642737,-253.93406,0.00014999,2]
[331397600,1720344642748,-792.571218,0.00014999,2]
[331397601,1720344642758,-653.017802,0.00014999,2]
[331397602,1720344642768,-151.0,0.00014999,2]
[331397603,1720344642778,-253.93406,0.00014999,2]
[331397604,1720344642788,-653.017802,0.00014999,2]
[331397605,1720344642801,-151.0,0.00014999,2]
[331397606,1720344642812,-151.0,0.00014999,2]
[331397607,1720344642822,-151.0,0.00014999,2]
[331397608,1720344642832,-206.488581,0.00014999,2]
[331397609,1720344642843,-206.488581,0.00014999,2]
[331397611,1720344642852,-1065852.53305042,0.00015,2]
[331397628,1720344643097,-155.0,0.00013543,2]
[331397629,1720344643108,-464.22,0.0001399,3]
[331397630,1720344643121,-483.320042,0.00014999,2]
[331397631,1720344643132,-579.44396352,0.00015,2]
[331397632,1720344643145,-1710.88019025,0.00015,2]
[331397633,1720344643388,-163.89995536,0.00013999,2]
[331397634,1720344643398,-483.320042,0.00014999,2]
[331397635,1720344643408,-6.09270956,0.00015,2]
[331397636,1720344643422,-265.6000002,0.00015,2]
[331397637,1720344643443,-338.33384392,0.00015,2]
[331397638,1720344645251,-319.999995,0.00015,2]
[331397645,1720344647253,-580.22,0.00015,2]
[331397646,1720344647270,-747149.54216119,0.00015,2]
[331397649,1720344857604,1234.57476027,9e-05,2]
[331397650,1720344862087,495.0,0.00034119,30]
[331397651,1720344885974,371.63005472,0.000118,2]
[331397653,1720344947240,167.17549563,0.000118,2]
[331397654,1720344959537,300.51199197,0.000118,2]
[331397655,1720344981842,199.35134136,0.000118,2]
[331397656,1720344982830,553.07615953,0.000118,2]
[331397657,1720344995419,229.69307559,0.000118,2]
[331397658,1720345001653,302.10820642,0.000118,2]
[331397659,1720345040763,381.89,0.00011713,2]
[331397660,1720345077120,431.12060061,0.00011199,2]
[331397662,1720345114435,3562.97671484,0.000112,2]
[331397663,1720345114461,1729.62116465,0.000112,2]
[331397664,1720345151696,1000.0,0.00034119,30]
[331397666,1720345194542,8270.37883535,0.00011199,2]
[331397667,1720345194569,10000.0,0.00011199,2]
[331397668,1720345194595,2819.62181691,0.00011199,2]
[331397677,1720345256548,989109.46537092,0.000225,120]
[331397678,1720345256585,603057.19903256,0.000225,120]
[331397679,1720345256620,1580000.91993594,0.000225,120]
[331397680,1720345256651,30000.0,0.000225,120]
[331397686,1720345399418,167.47,0.00010465,2]
[331397687,1720345418940,9244.88765842,0.00011199,2]
[331397689,1720345537155,10587.64234158,0.00011199,2]
[331397690,1720345537179,7180.37818309,0.00011199,2]
[331397691,1720345537201,10000.0,0.00011199,2]
[331397692,1720345537229,271.41017997,0.00011199,2]
[331397694,1720345544888,1494.4651745,0.00011199,2]
[331397695,1720345576267,259.04390649,0.00011199,2]
[331397700,1720345655476,362.79,0.00011096,2]
[331397701,1720345682100,205.38751794,0.00011199,2]
[331397702,1720345686771,28039.43070464,0.00011199,2]
[331397703,1720345726695,9239.23807789,0.00011199,2]
[331397717,1720345796248,155.0,0.00011199,2]
[331397718,1720345798707,28039.43070464,0.00011199,2]
[331397724,1720345830832,15436.64259195,0.00011199,2]
[331397736,1720345832668,-873.04,0.00012202,2]
[331397738,1720345832679,-256.48064281,0.00012314,2]
[331397740,1720345832689,-384.81,0.00012922,2]
[331397742,1720345832699,-166.47,0.00013033,2]
[331397744,1720345832708,-972.15322402,0.0001305,2]
[331397746,1720345832717,-500.0,0.00013172,3]
[331397748,1720345832727,-250.0,0.00013207,2]
[331397750,1720345832737,-362.79,0.0001336,2]
[331397752,1720345832746,-1332.19238669,0.00013516,2]
[331397754,1720345832755,-171.371219,0.00013605,2]
[331397756,1720345832764,-272.73,0.00013699,2]
[331397758,1720345832775,-616.0,0.00013706,2]
[331397760,1720345832784,-499.99,0.00013736,2]
[331397762,1720345832794,-611.0,0.00013741,2]
[331397764,1720345832803,-7500.0,0.0001378,2]
[331397766,1720345832813,-162.59089089,0.000138,2]
[331397768,1720345832823,-174.49944535,0.000138,2]
[331397770,1720345832832,-274.63400537,0.00013845,2]
[331397772,1720345832841,-211328.77106514,0.0001387,2]
[331397774,1720345832852,-216.45576739,0.0001387,2]
[331397777,1720345832862,-500.0,0.00013879,2]
[331397779,1720345832871,-188.92918688,0.00013879,2]
[331397780,1720345832880,-500.0,0.00013879,2]
[331397782,1720345832889,-603.08828472,0.00013879,2]
[331397785,1720345832899,-500.0,0.00013879,2]
[331397787,1720345832908,-500.0,0.00013879,2]
[331397788,1720345832917,-283.08768838,0.00013879,2]
[331397790,1720345832926,-500.0,0.00013879,2]
[331397791,1720345832935,-500.0,0.00013879,2]
[331397793,1720345832945,-500.0,0.00013879,2]
[331397794,1720345832955,-500.0,0.00013879,2]
[331397796,1720345832964,-500.0,0.00013879,2]
[331397797,1720345832973,-500.00000001,0.00013879,2]
[331397799,1720345832983,-500.0,0.00013879,2]
[331397800,1720345832992,-500.0,0.00013879,2]
[331397801,1720345833001,-500.0,0.00013879,2]
[331397802,1720345833011,-500.0,0.00013879,2]
[331397803,1720345833020,-500.0,0.00013879,2]
[331397804,1720345833030,-500.0,0.00013879,2]
[331397805,1720345833039,-500.0,0.00013879,2]
[331397806,1720345833048,-500.0,0.00013879,2]
[331397807,1720345833058,-375.30902029,0.00013879,2]
[331397808,1720345833068,-500.0,0.00013879,2]
[331397809,1720345833077,-500.0,0.00013879,2]
[331397810,1720345833087,-500.0,0.00013879,2]
[331397811,1720345833096,-500.0,0.00013879,2]
[331397812,1720345833106,-500.0,0.00013879,2]
[331397813,1720345833115,-500.0,0.00013879,2]
[331397814,1720345833126,-500.0,0.00013879,2]
[331397815,1720345833135,-500.0,0.00013879,2]
[331397816,1720345833144,-500.0,0.00013879,2]
[331397817,1720345833154,-500.0,0.00013879,2]
[331397818,1720345833164,-565.13070496,0.00013879,2]
[331397819,1720345833174,-500.0,0.00013879,2]
[331397820,1720345833184,-636.04304169,0.00013879,2]
[331397821,1720345833194,-500.0,0.00013879,2]
[331397822,1720345833204,-396.91799191,0.00013879,2]
[331397823,1720345833213,-500.0,0.00013879,2]
[331397824,1720345833223,-500.0,0.00013879,2]
[331397825,1720345833232,-500.0,0.00013879,2]
[331397826,1720345833241,-500.0,0.00013879,2]
[331397827,1720345833251,-500.0,0.00013879,2]
[331397828,1720345833260,-500.0,0.00013879,2]
[331397829,1720345833271,-20865.10163869,0.0001388,2]
[331397835,1720345839603,-220.1,0.00013781,3]
[331397839,1720345839614,-1373.89253644,0.0001388,2]
[331397842,1720345839626,-2168.73738276,0.0001388,2]
[331397844,1720345839638,-416.89261724,0.0001388,2]
[331397846,1720345839651,-672.16249084,0.0001388,2]
[331397849,1720345839662,-290.5188287,0.0001388,2]
[331397851,1720345839676,-1881.021065,0.0001388,2]
[331398148,1720345842648,-2612.31493701,0.0001388,2]
[331398150,1720345842659,-405.50820318,0.0001388,2]
[331398152,1720345842675,-1509.67999999,0.0001388,2]
[331398156,1720345842703,-1015.75187423,0.0001388,2]
[331398279,1720345843986,-827.19049739,0.0001388,2]
[331398287,1720345843997,-1202.82442801,0.0001388,2]
[331398291,1720345844008,-623.25,0.0001388,2]
[331398295,1720345844020,-760.21,0.0001388,2]
[331398676,1720345847518,-1220.00000001,0.0001388,2]
[331398679,1720345847530,-479.94039008,0.0001388,2]
[331398682,1720345847543,-31746.59391142,0.0001388,2]
[331398684,1720345847555,-427.149998,0.0001388,2]
[331398686,1720345847566,-1502.81579274,0.0001388,2]
[331398689,1720345847578,-354794.22296773,0.0001388,2]
[331398860,1720345952705,22786.32164262,0.00011199,2]
[331398864,1720346012172,10000.0,0.00011199,2]
[331398865,1720346012199,10000.0,0.00011199,2]
[331398866,1720346013103,10000.0,0.00011199,2]
[331398867,1720346013131,10000.0,0.00011199,2]
[331398868,1720346165418,10000.0,0.00011199,2]
[331398869,1720346165447,25599.55324681,0.00011199,2]
[331398870,1720346175142,35599.55324681,0.00011199,2]
[331398871,1720346204764,326.51,0.00011275,2]
[331398872,1720346250878,1400.07806293,0.00011199,2]
[331398873,1720346278001,50000.0,0.00011275,2]
[331398874,1720346306913,272.20604743,0.00011199,2]
[331398875,1720346335650,32979.91757913,0.00011199,2]
[331398876,1720346355153,1054.51068328,0.00011199,2]
[331398879,1720346402994,178.19253356,0.00011199,2]
[331398880,1720346492028,227.22563372,0.00011199,2]
[331398881,1720346494716,155.0,0.00011199,2]
[331398882,1720346519508,722.66989081,0.00011199,2]
[331398883,1720346545747,186.00649827,0.00011199,2]
[331398884,1720346583556,1468.13030337,0.00011199,2]
[331398885,1720346598571,1468.13030337,0.00011199,2]
[331398887,1720346718812,254.52907522,0.00011199,2]
[331398888,1720346753744,384.37136665,0.00011199,2]
[331398889,1720346815684,155.0,0.00011199,2]
[331398890,1720346919186,310.18,0.00010946,2]
[331398891,1720346946912,227.07305165,0.00011199,2]
[331398892,1720346960555,815.62794632,0.00011199,2]
[331398899,1720347032904,-184.28825684,0.00012202,2]
[331398901,1720347032913,-253.69968354,0.00012273,2]
[331398903,1720347032923,-155.0,0.00012314,2]
[331398905,1720347032934,-250.0,0.00012897,2]
[331398907,1720347032944,-250.0,0.00012905,2]
[331398908,1720347032954,-174.19,0.00013036,2]
[331398910,1720347032963,-310.18,0.00013209,2]
[331398912,1720347032972,-424.94216003,0.00013268,2]
[331398914,1720347032982,-1000.0,0.0001335,2]
[331398916,1720347032991,-264.35774578,0.00013488,2]
[331398917,1720347033000,-1014.21710702,0.00013516,2]
[331398918,1720347033009,-266.43574909,0.00013516,2]
[331398919,1720347033019,-296.98016859,0.00013574,2]
[331398920,1720347033028,-300.0,0.00013604,2]
[331398921,1720347033037,-770.813676,0.00013605,2]
[331398922,1720347033047,-313.86407,0.00013605,2]
[331398923,1720347033056,-3083.254707,0.00013605,2]
[331398924,1720347033066,-574.724829,0.00013605,2]
[331398925,1720347033075,-272.73,0.00013699,2]
[331398926,1720347033086,-3000.0,0.0001374,2]
[331398927,1720347033096,-770.813676,0.00013775,2]
[331398928,1720347033107,-313.86407,0.00013775,2]
[331398929,1720347033118,-574.724829,0.00013775,2]
[331398930,1720347033130,-3083.254707,0.00013775,2]
[331398931,1720347033140,-48407.3023,0.0001378,2]
[331398932,1720347033151,-219.70720432,0.0001378,2]
[331398933,1720347033161,-432.49374104,0.0001378,2]
[331398934,1720347033170,-769.254,0.0001382,2]
[331398935,1720347033180,-366.432,0.0001382,2]
[331398936,1720347033190,-283.0,0.0001382,2]
[331398937,1720347033199,-291.0,0.0001382,2]
[331398938,1720347033208,-5175.0,0.0001382,2]
[331398939,1720347033218,-1663.0,0.0001382,2]
[331398940,1720347033227,-38229.0,0.0001382,2]
[331398941,1720347033237,-1199.0,0.0001382,2]
[331398942,1720347033246,-5813.0,0.0001382,2]
[331398943,1720347033256,-216.45576739,0.0001387,2]
[331398944,1720347033266,-500.0,0.00013879,2]
[331398945,1720347033275,-217.5029699,0.00013879,2]
[331398946,1720347033287,-500.0,0.00013879,2]
[331398947,1720347033296,-397.33927823,0.00013879,2]
[331398948,1720347033306,-500.0,0.00013879,2]
[331398949,1720347033316,-500.0,0.00013879,2]
[331398950,1720347033326,-402.05125184,0.00013879,2]
[331398951,1720347033336,-210.81547536,0.00013879,2]
[331398952,1720347033346,-178387.54182625,0.0001388,2]
[331398953,1720347033360,-1420.86797097,0.0001388,2]
[331398954,1720347033372,-4782.84240991,0.0001388,2]
[331398955,1720347033384,-6728.94505261,0.0001388,2]
[331398956,1720347033395,-440.61982831,0.0001388,2]
[331398957,1720347033407,-517.9614323,0.0001388,2]
[331398958,1720347033420,-820.87408869,0.0001388,2]
[331398959,1720347033431,-1325.8073129,0.0001388,2]
[331398960,1720347033443,-919.32000046,0.0001388,2]
[331398961,1720347033455,-630.85,0.0001388,2]
[331398962,1720347033466,-817.64440037,0.0001388,2]
[331398963,1720347033477,-76056.25308001,0.0001388,2]
[331398964,1720347033488,-361.4991721,0.0001388,2]
[331398965,1720347033500,-2109.43741355,0.0001388,2]
[331398966,1720347036891,-2783.40559046,0.0001388,2]
[331398967,1720347036903,-425223.00282973,0.0001388,2]
[331398968,1720347036912,-2000.0,0.0001388,2]
[331398969,1720347036921,-200.0,0.0001388,2]
[331398970,1720347036931,-2000.0,0.0001388,2]
[331398971,1720347036940,-200.0,0.0001388,2]
[331398972,1720347036949,-194.54721008,0.00013899,2]
[331398973,1720347036959,-185.66455591,0.00013899,2]
[331398974,1720347036969,-162.59089085,0.000139,2]
[331398975,1720347036978,-7500.0,0.000139,2]
[331398976,1720347036987,-171.371219,0.00013945,2]
[331398977,1720347036996,-770.813676,0.00013945,2]
[331398978,1720347037006,-574.724829,0.00013945,2]
[331398979,1720347037015,-3083.254707,0.00013945,2]
[331398980,1720347037024,-313.86407,0.00013945,2]
[331398981,1720347037033,-500.0,0.00013998,2]
[331398982,1720347037043,-170.10771082,0.00013998,2]
[331398983,1720347037052,-500.0,0.00013998,2]
[331398984,1720347037061,-500.0,0.00013998,2]
[331398985,1720347037070,-432.84076074,0.00013998,2]
[331398986,1720347037080,-500.0,0.00013998,2]
[331398987,1720347037092,-500.0,0.00013998,2]
[331398988,1720347037101,-360.02567488,0.00013998,2]
[331398989,1720347037111,-1060.0,0.00013999,2]
[331398990,1720347037122,-189353.87914633,0.00013999,2]
[331398991,1720347037135,-4462.52367967,0.00013999,2]
[331398992,1720347037149,-2012.29595931,0.00013999,2]
[331398993,1720347038218,-155.0,0.00012302,2]
[331398995,1720347038228,-310.0,0.00013802,2]
[331398996,1720347038238,-544.91881608,0.00013973,2]
[331399001,1720347040110,-1052.52378692,0.00013973,2]
[331399002,1720347040120,-106255.33077571,0.00013999,2]
[331399003,1720347040137,-80450.57439791,0.00013999,2]
[331399004,1720347040147,-35241.91287208,0.00014,2]
[331399005,1720347040160,-914.0500234,0.00014,2]
[331399006,1720347040171,-2166.78342138,0.00014,2]
[331399007,1720347040183,-361.675,0.00014,2]
[331399008,1720347040195,-4552.91952645,0.00014,2]
[331399009,1720347040207,-10987.39192041,0.00014,2]
[331399010,1720347040218,-9236.84294055,0.00014,2]